[Event "*** Titled Tuesday Blitz"]
[Site "Chess.com"]
[Date "2020.03.03"]
[Round "4"]
[White "newauto"]
[Black "lelya96"]
[Result "0-1"]
[WhiteElo "2008"]
[BlackElo "2294"]
[TimeControl "180+1"]
[EndTime "13:40:14 PST"]
[Termination "lelya96 won by checkmate"]

1. e4 {[%clk 0:03:00.5]} 1... e5 {[%clk 0:02:59.5]} 2. Nf3 {[%clk 0:03:00.1]}
2... Nc6 {[%clk 0:02:59.9]} 3. Nc3 {[%clk 0:03:00]} 3... Bb4 {[%clk 0:02:57.1]}
4. Nd5 {[%clk 0:02:55.1]} 4... Bc5 {[%clk 0:02:56.6]} 5. c3 {[%clk 0:02:53.7]}
5... Nf6 {[%clk 0:02:52]} 6. d4 {[%clk 0:02:33.5]} 6... exd4 {[%clk 0:02:50.7]}
7. cxd4 {[%clk 0:02:33.1]} 7... Bb4+ {[%clk 0:02:50.7]} 8. Nxb4 {[%clk
0:02:31.8]} 8... Nxb4 {[%clk 0:02:49.7]} 9. a3 {[%clk 0:02:14.1]} 9... Nc6
{[%clk 0:02:24.8]} 10. d5 {[%clk 0:02:10.2]} 10... Ne7 {[%clk 0:02:24.7]} 11.
Bd3 {[%clk 0:02:00.2]} 11... d6 {[%clk 0:02:24.6]} 12. O-O {[%clk 0:01:58.7]}
12... Bg4 {[%clk 0:02:24.5]} 13. h3 {[%clk 0:01:53]} 13... Bh5 {[%clk
0:02:20.9]} 14. Bg5 {[%clk 0:01:44.1]} 14... Nd7 {[%clk 0:02:12.2]} 15. Rc1
{[%clk 0:01:33.6]} 15... f6 {[%clk 0:02:10]} 16. Be3 {[%clk 0:01:30.9]} 16...
Ne5 {[%clk 0:02:09.4]} 17. Be2 {[%clk 0:01:29.4]} 17... Bxf3 {[%clk 0:02:05.6]}
18. Bxf3 {[%clk 0:01:28.9]} 18... O-O {[%clk 0:02:04]} 19. Be2 {[%clk
0:01:23.6]} 19... f5 {[%clk 0:02:00]} 20. f3 {[%clk 0:01:06.2]} 20... c6 {[%clk
0:01:46.5]} 21. dxc6 {[%clk 0:01:03.8]} 21... bxc6 {[%clk 0:01:46.2]} 22. f4
{[%clk 0:00:38]} 22... N5g6 {[%clk 0:01:41.2]} 23. Bf3 {[%clk 0:00:32.6]} 23...
fxe4 {[%clk 0:01:39]} 24. Bxe4 {[%clk 0:00:31.4]} 24... d5 {[%clk 0:01:39.3]}
25. Bxg6 {[%clk 0:00:25.6]} 25... Nxg6 {[%clk 0:01:38.6]} 26. Rxc6 {[%clk
0:00:21.9]} 26... Kh8 {[%clk 0:01:30.5]} 27. Qc2 {[%clk 0:00:16.6]} 27... d4
{[%clk 0:01:24.3]} 28. Rd1 {[%clk 0:00:15.3]} 28... Nxf4 {[%clk 0:01:20.9]} 29.
Rxd4 {[%clk 0:00:10]} 29... Nd5 {[%clk 0:00:46.9]} 30. Bf2 {[%clk 0:00:07.7]}
30... Qg5 {[%clk 0:00:39.7]} 31. Rc5 {[%clk 0:00:06.8]} 31... Ne3 {[%clk
0:00:33.8]} 32. Qd2 {[%clk 0:00:05.4]} 32... Qxg2# {[%clk 0:00:32]} 0-1

[Event "*** Titled Tuesday Blitz"]
[Site "Chess.com"]
[Date "2020.03.03"]
[Round "4"]
[White "Gentlejimmy7"]
[Black "platy3"]
[Result "1/2-1/2"]
[WhiteElo "2703"]
[BlackElo "2857"]
[TimeControl "180+1"]
[EndTime "13:40:15 PST"]
[Termination "Game drawn by repetition"]

1. d4 {[%clk 0:03:00.9]} 1... Nf6 {[%clk 0:02:54.4]} 2. Nf3 {[%clk 0:02:59.9]}
2... d5 {[%clk 0:02:53.9]} 3. c4 {[%clk 0:02:58.8]} 3... e6 {[%clk 0:02:53]} 4.
g3 {[%clk 0:02:58.2]} 4... dxc4 {[%clk 0:02:51.8]} 5. Bg2 {[%clk 0:02:53.2]}
5... c6 {[%clk 0:02:51.6]} 6. O-O {[%clk 0:02:52.4]} 6... b5 {[%clk 0:02:50.7]}
7. a4 {[%clk 0:02:50.6]} 7... Bb7 {[%clk 0:02:45.9]} 8. b3 {[%clk 0:02:50.4]}
8... cxb3 {[%clk 0:02:45]} 9. Qxb3 {[%clk 0:02:51.3]} 9... a6 {[%clk 0:02:45.5]}
10. Nbd2 {[%clk 0:02:49.9]} 10... Be7 {[%clk 0:02:44.5]} 11. Ba3 {[%clk
0:02:50.2]} 11... O-O {[%clk 0:02:40.4]} 12. Rfc1 {[%clk 0:02:49.1]} 12... Nbd7
{[%clk 0:02:37]} 13. Bxe7 {[%clk 0:02:18.3]} 13... Qxe7 {[%clk 0:02:34.2]} 14.
Qc2 {[%clk 0:02:19.2]} 14... c5 {[%clk 0:02:08.2]} 15. dxc5 {[%clk 0:02:14.6]}
15... Rfc8 {[%clk 0:02:07.8]} 16. axb5 {[%clk 0:02:09]} 16... Rxc5 {[%clk
0:02:02.1]} 17. Qb2 {[%clk 0:02:03]} 17... axb5 {[%clk 0:01:58.4]} 18. Rxa8+
{[%clk 0:02:00.5]} 18... Bxa8 {[%clk 0:01:59.3]} 19. Ra1 {[%clk 0:01:59.8]}
19... Bd5 {[%clk 0:01:55.6]} 20. Nd4 {[%clk 0:01:57.3]} 20... Bxg2 {[%clk
0:01:25.9]} 21. Kxg2 {[%clk 0:01:58.2]} 21... Nb6 {[%clk 0:01:17.3]} 22. Ra5
{[%clk 0:01:47]} 22... Qb7+ {[%clk 0:00:37.3]} 23. Kg1 {[%clk 0:01:43.4]} 23...
Nbd5 {[%clk 0:00:17.2]} 24. Rxb5 {[%clk 0:01:40.1]} 24... Rxb5 {[%clk
0:00:17.2]} 25. Qxb5 {[%clk 0:01:41]} 25... Qa7 {[%clk 0:00:14.9]} 26. N4b3
{[%clk 0:01:15.7]} 26... h6 {[%clk 0:00:13.3]} 27. Qa5 {[%clk 0:01:12.2]} 27...
Qb8 {[%clk 0:00:13]} 28. Qc5 {[%clk 0:01:09.2]} 28... Qa8 {[%clk 0:00:08.9]} 29.
Qa5 {[%clk 0:01:09]} 29... Qb8 {[%clk 0:00:08.3]} 30. Qc5 {[%clk 0:01:09]} 30...
Nd7 {[%clk 0:00:08.5]} 31. Qa5 {[%clk 0:01:04.6]} 31... Ne5 {[%clk 0:00:07.4]}
32. Qc5 {[%clk 0:00:56.2]} 32... Ng4 {[%clk 0:00:07]} 33. Qd4 {[%clk 0:00:49.4]}
33... Ngf6 {[%clk 0:00:06.4]} 34. Qc5 {[%clk 0:00:45.6]} 1/2-1/2

[Event "*** Titled Tuesday Blitz"]
[Site "Chess.com"]
[Date "2020.03.03"]
[Round "4"]
[White "Azeryahu"]
[Black "HomayoonTofighi"]
[Result "0-1"]
[WhiteElo "2797"]
[BlackElo "2613"]
[TimeControl "180+1"]
[EndTime "13:40:25 PST"]
[Termination "HomayoonTofighi won by resignation"]

1. Nf3 {[%clk 0:03:00.8]} 1... Nf6 {[%clk 0:02:58.5]} 2. g3 {[%clk 0:03:00.8]}
2... c5 {[%clk 0:02:57.8]} 3. Bg2 {[%clk 0:03:00.5]} 3... Nc6 {[%clk 0:02:56.2]}
4. O-O {[%clk 0:02:57.5]} 4... d5 {[%clk 0:02:56.6]} 5. d4 {[%clk 0:02:57.2]}
5... Bg4 {[%clk 0:02:50.1]} 6. Ne5 {[%clk 0:02:55.4]} 6... cxd4 {[%clk
0:02:45.2]} 7. Nxg4 {[%clk 0:02:54.4]} 7... Nxg4 {[%clk 0:02:45.4]} 8. c3 {[%clk
0:02:37]} 8... dxc3 {[%clk 0:02:27.7]} 9. e4 {[%clk 0:02:25]} 9... c2 {[%clk
0:02:10.6]} 10. Qxc2 {[%clk 0:02:04.5]} 10... d4 {[%clk 0:02:09.9]} 11. e5
{[%clk 0:01:32.8]} 11... Ngxe5 {[%clk 0:02:04.8]} 12. Bf4 {[%clk 0:01:32.8]}
12... Rc8 {[%clk 0:01:59]} 13. Qe4 {[%clk 0:01:21.9]} 13... Ng6 {[%clk
0:01:56.1]} 14. Nd2 {[%clk 0:01:20.2]} 14... e6 {[%clk 0:01:52.4]} 15. Nb3
{[%clk 0:01:00.6]} 15... Bd6 {[%clk 0:01:47.3]} 16. Bxd6 {[%clk 0:00:44.5]}
16... Qxd6 {[%clk 0:01:48.2]} 17. Rfd1 {[%clk 0:00:45.4]} 17... e5 {[%clk
0:01:43.6]} 18. f4 {[%clk 0:00:27]} 18... O-O {[%clk 0:01:41.6]} 19. fxe5 {[%clk
0:00:27.4]} 19... Ngxe5 {[%clk 0:01:36.9]} 20. Nxd4 {[%clk 0:00:27]} 20... Rfd8
{[%clk 0:01:34.1]} 21. Nxc6 {[%clk 0:00:18.3]} 21... Qxd1+ {[%clk 0:01:34.4]}
22. Rxd1 {[%clk 0:00:19.2]} 22... Rxd1+ {[%clk 0:01:34.8]} 23. Bf1 {[%clk
0:00:19.9]} 23... Nxc6 {[%clk 0:01:34.6]} 24. Qg4 {[%clk 0:00:19.2]} 24... Rcd8
{[%clk 0:01:34.8]} 25. Kg2 {[%clk 0:00:18.7]} 25... R1d2+ {[%clk 0:01:34.9]} 26.
Kh3 {[%clk 0:00:18.7]} 26... g6 {[%clk 0:01:33]} 27. Bc4 {[%clk 0:00:17.9]}
27... Ne5 {[%clk 0:01:33.5]} 28. Qf4 {[%clk 0:00:17.8]} 28... Nxc4 {[%clk
0:01:34.1]} 29. Qxc4 {[%clk 0:00:18.7]} 29... Rxb2 {[%clk 0:01:34.7]} 30. Qc7
{[%clk 0:00:18.6]} 30... Re8 {[%clk 0:01:34.3]} 31. Qd7 {[%clk 0:00:18.3]} 31...
Ree2 {[%clk 0:01:29.9]} 32. Qd8+ {[%clk 0:00:18]} 32... Kg7 {[%clk 0:01:29.9]}
33. Qd4+ {[%clk 0:00:18.9]} 33... f6 {[%clk 0:01:29.7]} 34. Qd7+ {[%clk
0:00:16.6]} 34... Kh6 {[%clk 0:01:30.3]} 35. Kg4 {[%clk 0:00:17.5]} 35... f5+
{[%clk 0:01:27.9]} 36. Kf4 {[%clk 0:00:17]} 36... Re4+ {[%clk 0:01:22.5]} 37.
Kf3 {[%clk 0:00:17.2]} 37... Rxh2 {[%clk 0:01:22.6]} 38. Qd8 {[%clk 0:00:14.6]}
38... Rxa2 {[%clk 0:01:18]} 39. Qf8+ {[%clk 0:00:11.9]} 39... Kh5 {[%clk
0:01:18.4]} 40. Qf7 {[%clk 0:00:11.3]} 40... Ra3+ {[%clk 0:01:18.9]} 41. Kg2
{[%clk 0:00:11.2]} 41... h6 {[%clk 0:01:18.5]} 42. Qf6 {[%clk 0:00:07.7]} 42...
Rg4 {[%clk 0:01:14.7]} 43. Kh2 {[%clk 0:00:06]} 43... Rgxg3 {[%clk 0:01:12.6]}
44. Qb2 {[%clk 0:00:02.4]} 44... Rh3+ {[%clk 0:01:10.3]} 45. Kg1 {[%clk
0:00:02.8]} 45... Rag3+ {[%clk 0:01:09.4]} 0-1

[Event "*** Titled Tuesday Blitz"]
[Site "Chess.com"]
[Date "2020.03.03"]
[Round "4"]
[White "sergiochess83"]
[Black "Mikasinski"]
[Result "1-0"]
[WhiteElo "2918"]
[BlackElo "2263"]
[TimeControl "180+1"]
[EndTime "13:40:25 PST"]
[Termination "sergiochess83 won on time"]

1. e4 {[%clk 0:03:00.9]} 1... c5 {[%clk 0:02:35.4]} 2. Nf3 {[%clk 0:02:58.9]}
2... d6 {[%clk 0:02:34.3]} 3. d4 {[%clk 0:02:58.1]} 3... cxd4 {[%clk 0:02:34.6]}
4. Nxd4 {[%clk 0:02:59]} 4... Nf6 {[%clk 0:02:34.7]} 5. Nc3 {[%clk 0:02:59.6]}
5... g6 {[%clk 0:02:31.6]} 6. Be3 {[%clk 0:02:55.7]} 6... Bg7 {[%clk 0:02:31.1]}
7. f3 {[%clk 0:02:56.3]} 7... Nc6 {[%clk 0:02:28.7]} 8. Qd2 {[%clk 0:02:55.8]}
8... O-O {[%clk 0:02:28.7]} 9. O-O-O {[%clk 0:02:55.8]} 9... Bd7 {[%clk
0:02:25.8]} 10. g4 {[%clk 0:02:48.5]} 10... Rc8 {[%clk 0:02:12.6]} 11. h4 {[%clk
0:02:46.4]} 11... Ne5 {[%clk 0:02:11.3]} 12. Kb1 {[%clk 0:02:24.5]} 12... Qa5
{[%clk 0:02:04.4]} 13. Be2 {[%clk 0:02:01.5]} 13... Rxc3 {[%clk 0:02:00.6]} 14.
Qxc3 {[%clk 0:02:00.9]} 14... Qxc3 {[%clk 0:02:00.2]} 15. bxc3 {[%clk
0:02:01.8]} 15... Rc8 {[%clk 0:01:56.8]} 16. Kb2 {[%clk 0:01:54.5]} 16... Be8
{[%clk 0:01:48.6]} 17. h5 {[%clk 0:01:48.5]} 17... Nfd7 {[%clk 0:01:44.3]} 18.
hxg6 {[%clk 0:01:42]} 18... hxg6 {[%clk 0:01:43.1]} 19. Bh6 {[%clk 0:01:23.7]}
19... Nc5 {[%clk 0:01:28.5]} 20. Bxg7 {[%clk 0:01:21.9]} 20... Kxg7 {[%clk
0:01:27.7]} 21. f4 {[%clk 0:01:15.1]} 21... Na4+ {[%clk 0:01:21.3]} 22. Kc1
{[%clk 0:01:14.7]} 22... Nc4 {[%clk 0:01:11.2]} 23. Rh3 {[%clk 0:01:10.4]} 23...
e5 {[%clk 0:00:55.3]} 24. fxe5 {[%clk 0:00:53.3]} 24... dxe5 {[%clk 0:00:55.3]}
25. Nb3 {[%clk 0:00:44.7]} 25... Ncb2 {[%clk 0:00:47.8]} 26. Rdh1 {[%clk
0:00:39.5]} 26... Rxc3 {[%clk 0:00:33.2]} 27. Rh8 {[%clk 0:00:31.4]} 27... Kf6
{[%clk 0:00:01.8]} 28. Rxe8 {[%clk 0:00:30.8]} 28... Re3 {[%clk 0:00:01.9]} 29.
Bb5 {[%clk 0:00:21]} 29... Nc3 {[%clk 0:00:01.1]} 30. Kxb2 {[%clk 0:00:19.9]}
30... Nxb5 {[%clk 0:00:01.1]} 31. Rf1+ {[%clk 0:00:20.6]} 1-0

[Event "*** Titled Tuesday Blitz"]
[Site "Chess.com"]
[Date "2020.03.03"]
[Round "4"]
[White "Witaliss"]
[Black "Irishchessman16"]
[Result "1-0"]
[WhiteElo "2427"]
[BlackElo "2193"]
[TimeControl "180+1"]
[EndTime "13:40:25 PST"]
[Termination "Witaliss won by resignation"]

1. d4 {[%clk 0:03:00.9]} 1... Nf6 {[%clk 0:02:58]} 2. Nf3 {[%clk 0:03:00]} 2...
e6 {[%clk 0:02:54.4]} 3. c4 {[%clk 0:02:59.1]} 3... d5 {[%clk 0:02:53.7]} 4. Nc3
{[%clk 0:02:58.1]} 4... c6 {[%clk 0:02:40.7]} 5. cxd5 {[%clk 0:02:55.2]} 5...
exd5 {[%clk 0:02:40.2]} 6. Bg5 {[%clk 0:02:54.5]} 6... h6 {[%clk 0:02:36.1]} 7.
Bh4 {[%clk 0:02:53.7]} 7... Bf5 {[%clk 0:02:35.4]} 8. Qb3 {[%clk 0:02:49.2]}
8... Nbd7 {[%clk 0:02:30.6]} 9. Qxb7 {[%clk 0:02:44.4]} 9... Rb8 {[%clk
0:02:26.8]} 10. Qxc6 {[%clk 0:02:40.7]} 10... Rxb2 {[%clk 0:02:26.5]} 11. e3
{[%clk 0:02:37.1]} 11... Bb4 {[%clk 0:02:23]} 12. a3 {[%clk 0:02:29.9]} 12...
Qa5 {[%clk 0:02:18.5]} 13. Rc1 {[%clk 0:02:21.5]} 13... Qxa3 {[%clk 0:01:52.9]}
14. Bxf6 {[%clk 0:02:16.2]} 14... gxf6 {[%clk 0:01:50.9]} 15. Bb5 {[%clk
0:02:13.2]} 15... Bxc3+ {[%clk 0:01:29.2]} 16. Qxc3 {[%clk 0:02:00.3]} 16...
Qxc3+ {[%clk 0:01:25.3]} 17. Rxc3 {[%clk 0:02:00]} 17... Rb1+ {[%clk 0:01:25.4]}
18. Ke2 {[%clk 0:01:59]} 18... Rxh1 {[%clk 0:01:25.1]} 19. Rc8+ {[%clk
0:01:58.3]} 19... Ke7 {[%clk 0:01:25.7]} 20. Rxh8 {[%clk 0:01:58]} 20... Rb1
{[%clk 0:01:25.1]} 21. Bxd7 {[%clk 0:01:56.4]} 21... Bxd7 {[%clk 0:01:22.1]} 22.
Rxh6 {[%clk 0:01:55.8]} 22... Bb5+ {[%clk 0:01:20.7]} 23. Kd2 {[%clk 0:01:55.2]}
23... Rb2+ {[%clk 0:01:20.7]} 24. Kc3 {[%clk 0:01:53.4]} 24... Rxf2 {[%clk
0:01:19.1]} 25. Nh4 {[%clk 0:01:48.4]} 25... a5 {[%clk 0:01:15.4]} 26. g4 {[%clk
0:01:45.5]} 26... Bd7 {[%clk 0:01:11.2]} 27. h3 {[%clk 0:01:42.7]} 27... a4
{[%clk 0:01:08.5]} 28. Rh8 {[%clk 0:01:41.6]} 28... Re2 {[%clk 0:01:03.4]} 29.
Kd3 {[%clk 0:01:37.5]} 29... Bb5+ {[%clk 0:01:02]} 30. Kc3 {[%clk 0:01:35.8]}
30... Rxe3+ {[%clk 0:01:01.2]} 31. Kb4 {[%clk 0:01:35.6]} 31... Bd7 {[%clk
0:01:00.3]} 32. Nf5+ {[%clk 0:01:30.9]} 32... Bxf5 {[%clk 0:00:59.2]} 33. gxf5
{[%clk 0:01:30.7]} 33... Rd3 {[%clk 0:00:54.6]} 34. Kc5 {[%clk 0:01:27.9]} 34...
a3 {[%clk 0:00:50.9]} 35. Kxd5 {[%clk 0:01:27.2]} 35... a2 {[%clk 0:00:49]} 36.
Ra8 {[%clk 0:01:26.6]} 36... Rd2 {[%clk 0:00:47.8]} 37. h4 {[%clk 0:01:24.2]}
37... Rh2 {[%clk 0:00:46.8]} 38. Ra7+ {[%clk 0:01:20.8]} 38... Kf8 {[%clk
0:00:46.2]} 39. Kc5 {[%clk 0:01:20.1]} 39... Rxh4 {[%clk 0:00:40.4]} 40. Rxa2
{[%clk 0:01:18.1]} 40... Rf4 {[%clk 0:00:40.6]} 41. d5 {[%clk 0:01:16]} 41...
Rxf5 {[%clk 0:00:40.8]} 42. Kc6 {[%clk 0:01:15.7]} 42... Rf3 {[%clk 0:00:39.5]}
43. Rc2 {[%clk 0:01:12.9]} 43... Rd3 {[%clk 0:00:34.6]} 44. d6 {[%clk
0:01:11.1]} 44... f5 {[%clk 0:00:31.7]} 45. d7 {[%clk 0:01:06.4]} 45... Kg7
{[%clk 0:00:28.8]} 46. Kc7 {[%clk 0:01:05.4]} 46... Kg6 {[%clk 0:00:28.1]} 47.
Rc6+ {[%clk 0:01:03]} 47... f6 {[%clk 0:00:25.9]} 48. Rd6 {[%clk 0:01:02.9]}
48... Rc3+ {[%clk 0:00:25.3]} 49. Kb6 {[%clk 0:01:02.2]} 49... Rb3+ {[%clk
0:00:25.2]} 50. Kc5 {[%clk 0:01:01.9]} 50... Rc3+ {[%clk 0:00:24.7]} 51. Kd4
{[%clk 0:01:01.4]} 1-0

[Event "*** Titled Tuesday Blitz"]
[Site "Chess.com"]
[Date "2020.03.03"]
[Round "4"]
[White "Manukyan_Artak"]
[Black "MateusViageiro"]
[Result "1-0"]
[WhiteElo "2437"]
[BlackElo "2194"]
[TimeControl "180+1"]
[EndTime "13:40:26 PST"]
[Termination "Manukyan_Artak won by resignation"]

1. e4 {[%clk 0:03:00.9]} 1... c5 {[%clk 0:02:58.6]} 2. Nf3 {[%clk 0:02:59.5]}
2... d6 {[%clk 0:02:58.6]} 3. Bb5+ {[%clk 0:02:58.3]} 3... Nd7 {[%clk 0:02:58]}
4. O-O {[%clk 0:02:56.8]} 4... Nf6 {[%clk 0:02:57.7]} 5. Re1 {[%clk 0:02:56.2]}
5... a6 {[%clk 0:02:57.5]} 6. Bd3 {[%clk 0:02:55.4]} 6... e5 {[%clk 0:02:56]} 7.
a4 {[%clk 0:02:53.2]} 7... Be7 {[%clk 0:02:52.9]} 8. Na3 {[%clk 0:02:50.2]} 8...
O-O {[%clk 0:02:46.7]} 9. c3 {[%clk 0:02:49.7]} 9... b6 {[%clk 0:02:46.2]} 10.
Bc2 {[%clk 0:02:49.5]} 10... Bb7 {[%clk 0:02:46.1]} 11. d4 {[%clk 0:02:48.9]}
11... Qc7 {[%clk 0:02:45.3]} 12. d5 {[%clk 0:02:43.4]} 12... Rfe8 {[%clk
0:02:39.4]} 13. h3 {[%clk 0:02:41.5]} 13... Bf8 {[%clk 0:02:38.4]} 14. g4 {[%clk
0:02:32.2]} 14... h6 {[%clk 0:02:31.6]} 15. Kh2 {[%clk 0:02:27.1]} 15... Nh7
{[%clk 0:02:30.6]} 16. Rg1 {[%clk 0:02:25.8]} 16... Be7 {[%clk 0:02:29.3]} 17.
h4 {[%clk 0:02:21.4]} 17... f6 {[%clk 0:02:28.8]} 18. Nc4 {[%clk 0:02:13.9]}
18... b5 {[%clk 0:02:27.1]} 19. Ne3 {[%clk 0:02:12.8]} 19... Nb6 {[%clk
0:02:15.3]} 20. a5 {[%clk 0:02:06.3]} 20... Nd7 {[%clk 0:02:05.2]} 21. Nf5
{[%clk 0:02:05.4]} 21... Bc8 {[%clk 0:01:44]} 22. g5 {[%clk 0:01:55.7]} 22...
hxg5 {[%clk 0:01:43]} 23. hxg5 {[%clk 0:01:56.6]} 23... fxg5 {[%clk 0:01:40.8]}
24. Nxg5 {[%clk 0:01:48.8]} 24... Bxg5 {[%clk 0:00:43.6]} 25. Bxg5 {[%clk
0:01:49.7]} 25... Ndf8 {[%clk 0:00:42.8]} 26. Qh5 {[%clk 0:01:16.7]} 26... Bxf5
{[%clk 0:00:38.5]} 27. exf5 {[%clk 0:01:16]} 27... Qf7 {[%clk 0:00:37.4]} 28.
Qg4 {[%clk 0:01:06.7]} 28... Nxg5 {[%clk 0:00:35.1]} 29. Qxg5 {[%clk 0:01:06.8]}
29... Nh7 {[%clk 0:00:34.8]} 30. Qh4 {[%clk 0:01:02.5]} 30... Nf6 {[%clk
0:00:34.5]} 31. Rg6 {[%clk 0:01:01.2]} 31... Ra7 {[%clk 0:00:19.2]} 32. Rag1
{[%clk 0:01:00.3]} 32... Kf8 {[%clk 0:00:17.3]} 33. Qh8+ {[%clk 0:00:56.4]}
33... Ng8 {[%clk 0:00:15.6]} 34. f6 {[%clk 0:00:55.5]} 34... gxf6 {[%clk
0:00:10.5]} 35. Rxg8+ {[%clk 0:00:53.3]} 35... Ke7 {[%clk 0:00:10.2]} 36. Rxe8+
{[%clk 0:00:52.2]} 36... Qxe8 {[%clk 0:00:09.2]} 37. Rg7+ {[%clk 0:00:51.1]}
37... Kd8 {[%clk 0:00:09.2]} 38. Qxe8+ {[%clk 0:00:50.5]} 38... Kxe8 {[%clk
0:00:10.1]} 39. Rxa7 {[%clk 0:00:51.4]} 1-0

[Event "*** Titled Tuesday Blitz"]
[Site "Chess.com"]
[Date "2020.03.03"]
[Round "4"]
[White "Fuerza777"]
[Black "Keithonsky"]
[Result "0-1"]
[WhiteElo "2206"]
[BlackElo "2438"]
[TimeControl "180+1"]
[EndTime "13:40:32 PST"]
[Termination "Keithonsky won on time"]

1. d4 {[%clk 0:03:00.9]} 1... Nf6 {[%clk 0:02:59.1]} 2. c4 {[%clk 0:03:00.7]}
2... e6 {[%clk 0:02:59.2]} 3. g3 {[%clk 0:03:00.2]} 3... d5 {[%clk 0:02:59.4]}
4. Nf3 {[%clk 0:03:00.1]} 4... Be7 {[%clk 0:02:59.9]} 5. Bg2 {[%clk 0:03:00.1]}
5... O-O {[%clk 0:03:00.4]} 6. O-O {[%clk 0:03:00.2]} 6... dxc4 {[%clk 0:03:01]}
7. Qc2 {[%clk 0:03:00.3]} 7... a6 {[%clk 0:03:00.9]} 8. a4 {[%clk 0:03:00.2]}
8... Bd7 {[%clk 0:03:01.2]} 9. Rd1 {[%clk 0:03:00]} 9... Bc6 {[%clk 0:03:00.9]}
10. Nc3 {[%clk 0:03:00]} 10... Nbd7 {[%clk 0:03:00.3]} 11. e4 {[%clk 0:02:59.3]}
11... b5 {[%clk 0:02:56.5]} 12. d5 {[%clk 0:02:43]} 12... exd5 {[%clk
0:02:55.5]} 13. e5 {[%clk 0:02:43]} 13... Ne8 {[%clk 0:02:52]} 14. Nxd5 {[%clk
0:02:36.1]} 14... Bxd5 {[%clk 0:02:51.8]} 15. Rxd5 {[%clk 0:02:34.5]} 15... c6
{[%clk 0:02:52.7]} 16. Rd1 {[%clk 0:02:27.3]} 16... Qc8 {[%clk 0:02:52.3]} 17.
Bh3 {[%clk 0:02:21.9]} 17... Ra7 {[%clk 0:02:50.6]} 18. e6 {[%clk 0:02:08.3]}
18... fxe6 {[%clk 0:02:44.1]} 19. Bxe6+ {[%clk 0:02:08.1]} 19... Kh8 {[%clk
0:02:45]} 20. Ne5 {[%clk 0:02:01.1]} 20... Nef6 {[%clk 0:02:40.7]} 21. Qf5
{[%clk 0:01:20.8]} 21... g6 {[%clk 0:02:30]} 22. Nxg6+ {[%clk 0:01:00.8]} 22...
hxg6 {[%clk 0:02:29.5]} 23. Qh3+ {[%clk 0:01:00.7]} 23... Nh7 {[%clk 0:02:23.6]}
24. Bxd7 {[%clk 0:00:57.8]} 24... Qb8 {[%clk 0:02:17.9]} 25. Bf4 {[%clk
0:00:55.8]} 25... Qb6 {[%clk 0:02:14.3]} 26. Be5+ {[%clk 0:00:54]} 26... Bf6
{[%clk 0:02:14.3]} 27. Bxf6+ {[%clk 0:00:33.4]} 27... Rxf6 {[%clk 0:02:15]} 28.
Rd2 {[%clk 0:00:31.2]} 28... Kg7 {[%clk 0:02:10]} 29. Re1 {[%clk 0:00:30.2]}
29... Qc5 {[%clk 0:02:08.4]} 30. Qh4 {[%clk 0:00:24.8]} 30... Ng5 {[%clk
0:02:01.9]} 31. Kg2 {[%clk 0:00:15.4]} 31... Nf7 {[%clk 0:01:57.3]} 32. Re8
{[%clk 0:00:09.8]} 32... Qg5 {[%clk 0:01:51.6]} 33. Qxg5 {[%clk 0:00:07.2]}
33... Nxg5 {[%clk 0:01:52.5]} 34. Re7+ {[%clk 0:00:07.1]} 34... Rf7 {[%clk
0:01:51.6]} 35. Rxf7+ {[%clk 0:00:07.1]} 35... Nxf7 {[%clk 0:01:52.5]} 36. Bxc6
{[%clk 0:00:07.4]} 36... Ne5 {[%clk 0:01:51.7]} 37. axb5 {[%clk 0:00:06.4]}
37... axb5 {[%clk 0:01:51.8]} 38. Bxb5 {[%clk 0:00:06.4]} 38... Rb7 {[%clk
0:01:52.2]} 39. Be8 {[%clk 0:00:05.1]} 39... Kf6 {[%clk 0:01:49.7]} 40. f4
{[%clk 0:00:04.8]} 40... Nd3 {[%clk 0:01:49.7]} 41. Ba4 {[%clk 0:00:03.4]} 41...
Nxb2 {[%clk 0:01:47.9]} 42. Bc2 {[%clk 0:00:03]} 42... c3 {[%clk 0:01:48.1]} 43.
Re2 {[%clk 0:00:02.5]} 43... Nc4 {[%clk 0:01:47.1]} 44. Kf3 {[%clk 0:00:02.5]}
44... Rb2 {[%clk 0:01:45.8]} 45. g4 {[%clk 0:00:02.8]} 45... Nd2+ {[%clk
0:01:45.9]} 46. Ke3 {[%clk 0:00:02.3]} 46... Rxc2 {[%clk 0:01:45.9]} 47. Kd3
{[%clk 0:00:02.7]} 47... Rc1 {[%clk 0:01:45.1]} 48. g5+ {[%clk 0:00:03]} 48...
Kf5 {[%clk 0:01:44.6]} 49. Re5+ {[%clk 0:00:01.9]} 49... Kxf4 {[%clk 0:01:44.5]}
50. Rc5 {[%clk 0:00:02.7]} 50... Ne4 {[%clk 0:01:43.8]} 51. Rc4 {[%clk
0:00:02.5]} 51... Rd1+ {[%clk 0:01:44.1]} 52. Kc2 {[%clk 0:00:02.6]} 52... Rd2+
{[%clk 0:01:44.4]} 53. Kc1 {[%clk 0:00:02.8]} 53... Rxh2 {[%clk 0:01:44.5]} 54.
Rc6 {[%clk 0:00:01.9]} 54... Kxg5 {[%clk 0:01:44]} 55. Rc5+ {[%clk 0:00:01.4]}
55... Nxc5 {[%clk 0:01:43.5]} 0-1